bitfinex-derivatives/quotes_BNBF0:USTF0_20250524
["timestamp","ask_amount","ask_price","bid_price","bid_amount"]
[1748055309447,1.09576635,663.36,662.96,1.03670098]
[1748055309745,1.09576635,663.35,662.96,1.03670098]
[1748055309943,1.50130193,663.48,662.95,1.03670098]
[1748055310147,1.58493084,663.47,662.95,1.03670098]
[1748055310348,1.58493084,663.46,662.95,1.03670098]
[1748055310549,1.58493084,663.45,662.95,1.03670098]
[1748055310749,1.58493084,663.44,662.95,1.03670098]
[1748055310951,1.58503856,663.43,662.95,1.03670098]
[1748055311250,1.58504387,663.42,662.95,1.03670098]
[1748055311551,1.58504387,663.41,662.95,1.03670098]
[1748055311746,1.58504387,663.4,662.96,1.414]
[1748055311948,1.58504387,663.39,662.96,1.414]
[1748055312145,1.09582519,663.38,662.96,1.414]
[1748055312350,1.09582519,663.37,662.96,1.414]
[1748055312546,1.09582519,663.36,662.96,1.414]
[1748055312751,1.50130193,663.45,662.96,1.414]
[1748055312952,1.58497112,663.44,662.96,1.414]
[1748055313148,1.58497112,663.43,662.96,1.414]
[1748055313352,1.58497112,663.42,662.96,1.414]
[1748055313652,1.58497112,663.41,662.96,1.414]
[1748055313952,1.09577626,663.4,662.96,1.414]
[1748055314252,1.09577626,663.39,662.96,1.414]
[1748055314448,1.09577626,663.38,662.96,1.414]
[1748055314654,1.09577626,663.37,662.96,1.414]
[1748055314854,1.58497246,663.36,662.96,1.414]
[1748055315057,1.58497246,663.35,662.96,1.414]
[1748055315248,1.58497246,663.34,662.96,1.414]
[1748055315451,1.58497246,663.33,662.96,1.414]
[1748055315651,1.09577626,663.32,662.96,1.414]
[1748055315851,1.09577626,663.31,662.96,1.414]
[1748055316050,1.09577626,663.3,662.96,1.414]
[1748055316350,1.09577027,663.29,662.96,1.414]
[1748055316550,1.09577027,663.28,662.96,1.414]
[1748055316750,1.09577027,663.27,662.96,1.414]
[1748055316953,1.50130193,663.48,662.96,1.414]
[1748055317155,1.58496997,663.47,662.96,1.414]
[1748055317357,1.58496997,663.46,662.96,1.414]
[1748055317655,1.58495608,663.45,662.96,1.414]
[1748055317856,1.58495608,663.44,662.96,1.414]
[1748055318049,1.58495608,663.43,662.96,1.414]
[1748055318255,1.58466219,663.42,662.96,1.414]
[1748055318455,0.30135912,663.66,662.96,1.414]
[1748055318456,3.08596412,663.41,662.96,1.414]
[1748055318756,1.58466219,663.4,662.96,1.414]
[1748055318954,1.58466219,663.39,662.96,1.414]
[1748055319156,1.58466219,663.38,662.96,1.414]
[1748055319454,1.58466219,663.37,662.96,1.414]
[1748055319656,1.58466219,663.36,662.96,1.414]
[1748055319955,0.48920592,663.35,662.96,1.414]
[1748055320156,1.58457279,663.34,662.96,1.414]
[1748055320358,1.58457216,663.33,662.96,1.414]
[1748055320557,1.58457216,663.32,662.96,1.414]
[1748055320757,1.09536624,663.31,662.96,1.414]
[1748055321053,1.09536624,663.3,662.96,1.414]
[1748055321254,1.09536624,663.29,662.96,1.414]
[1748055321552,1.50130193,663.41,662.96,1.414]
[1748055321553,1.09536624,663.28,662.96,1.414]
[1748055321760,1.09536624,663.27,662.96,1.414]
[1748055321955,1.50130193,663.41,662.96,1.414]
[1748055322161,1.584588,663.4,662.96,1.414]
[1748055322359,1.584588,663.39,662.96,1.414]
[1748055322660,1.584588,663.38,662.96,1.414]
[1748055322861,1.584588,663.37,662.96,1.414]
[1748055323059,1.584588,663.36,662.96,1.414]
[1748055323355,1.584588,663.35,662.96,1.414]
[1748055323560,1.584588,663.34,662.96,1.414]
[1748055323761,1.584588,663.33,662.96,1.414]
[1748055323957,1.58459823,663.32,662.96,1.414]
[1748055324161,1.09536626,663.31,662.96,1.414]
[1748055324362,1.09536626,663.3,662.96,1.414]
[1748055324558,1.09536626,663.29,662.96,1.414]
[1748055324759,1.09536626,663.28,662.96,1.414]
[1748055324959,1.50130193,663.46,662.96,1.414]
[1748055325160,1.58457861,663.45,662.96,1.414]
[1748055325361,1.58457861,663.44,662.96,1.414]
[1748055325562,1.58457861,663.43,662.96,1.414]
[1748055325760,1.58457861,663.42,662.96,1.414]
[1748055325963,1.58457861,663.41,662.96,1.414]
[1748055326259,1.58457861,663.4,662.96,1.414]
[1748055326464,1.58457861,663.39,662.96,1.414]
[1748055326658,1.58457861,663.38,662.96,1.414]
[1748055326856,1.50130193,663.46,662.96,1.414]
[1748055326857,1.58457861,663.37,662.96,1.414]
[1748055327061,1.58457861,663.36,662.96,1.414]
[1748055327258,1.58457861,663.35,662.96,1.414]
[1748055327460,1.58457861,663.34,662.96,1.414]
[1748055327661,1.58457861,663.33,662.96,1.414]
[1748055327862,1.58457861,663.32,662.96,1.414]
[1748055328062,1.095353,663.31,662.96,1.414]
[1748055328263,1.095353,663.3,662.96,1.414]
[1748055328565,1.095353,663.29,662.96,1.414]
[1748055328765,1.095353,663.28,662.84,1.03670098]
[1748055328958,1.50130193,663.45,662.84,1.03670098]
[1748055329160,1.58452847,663.44,662.84,1.03670098]
[1748055329363,1.58452847,663.43,662.84,1.03670098]
[1748055329564,1.58452847,663.42,662.84,1.03670098]
[1748055329762,1.58452847,663.41,662.84,1.03670098]
[1748055329963,1.58452847,663.4,662.84,1.03670098]
[1748055330161,1.58452847,663.39,662.84,1.03670098]
[1748055330366,1.58452847,663.38,662.84,1.03670098]
[1748055330564,1.50130193,663.45,662.84,1.03670098]
[1748055330565,1.58452847,663.37,662.84,1.03670098]
[1748055330764,1.58452847,663.36,662.84,1.03670098]
[1748055331060,1.58452847,663.35,662.84,1.03670098]
[1748055331261,1.58452847,663.34,662.84,1.03670098]
[1748055331462,1.58452847,663.33,662.84,1.03670098]
[1748055331663,1.58452847,663.32,662.84,1.03670098]
[1748055331866,1.0953185,663.31,662.84,1.03670098]
[1748055332161,1.50130193,663.45,662.84,1.03670098]
[1748055332162,1.0953185,663.3,662.84,1.03670098]
[1748055332365,1.0953185,663.29,662.85,1.233]
[1748055332565,1.0953185,663.28,662.85,1.233]
[1748055332866,1.50130193,663.45,662.85,1.233]
[1748055333166,1.58448626,663.44,662.85,1.233]
[1748055333365,1.58448626,663.43,662.85,1.233]
[1748055333566,1.58448626,663.42,662.85,1.233]
[1748055333767,1.50130193,663.4,662.87,1.03670098]
[1748055333967,1.58448626,663.39,662.87,1.03670098]
[1748055334167,1.58448626,663.38,662.87,1.03670098]
[1748055334367,1.58448626,663.37,662.87,1.03670098]
[1748055334668,1.58447375,663.36,662.87,1.03670098]
[1748055334863,1.58447375,663.35,662.87,1.03670098]
[1748055335063,1.58447375,663.34,662.87,1.03670098]
[1748055335271,1.58447375,663.33,662.87,1.03670098]
[1748055335465,1.58447375,663.32,662.87,1.03670098]
[1748055335664,1.09527649,663.31,662.87,1.03670098]
[1748055335866,1.09527649,663.3,662.87,1.03670098]
[1748055336169,1.09527649,663.29,662.87,1.03670098]
[1748055336369,1.09527649,663.28,662.85,2.26970098]
[1748055336570,1.50130193,663.43,662.85,2.26970098]
[1748055336770,1.58443761,663.42,662.85,2.26970098]
[1748055336969,1.58443761,663.41,662.85,2.26970098]
[1748055337171,1.58443761,663.4,662.85,2.26970098]
[1748055337471,1.58443761,663.39,662.85,2.26970098]
[1748055337770,1.58443761,663.38,662.85,2.26970098]
[1748055337972,1.58443761,663.37,662.85,2.26970098]
[1748055338169,1.58443761,663.36,662.85,2.26970098]
[1748055338366,1.58441942,663.35,662.85,2.26970098]
[1748055338574,1.58441942,663.34,662.85,2.26970098]
[1748055338772,1.58441942,663.33,662.85,2.26970098]
[1748055338969,1.58441942,663.32,662.85,2.26970098]
[1748055339168,1.09524292,663.31,662.85,2.26970098]
[1748055339368,1.09524292,663.3,662.85,2.26970098]
[1748055339571,1.09524292,663.29,662.85,2.26970098]
[1748055339771,1.09524292,663.28,662.85,2.26970098]
[1748055339973,1.50130193,663.43,662.85,2.26970098]
[1748055340272,1.58436798,663.42,662.85,2.26970098]
[1748055340472,1.58436798,663.41,662.85,2.26970098]
[1748055340671,1.58436798,663.4,662.85,2.26970098]
[1748055340873,1.58436798,663.39,662.85,2.26970098]
[1748055341068,1.58436798,663.38,662.85,2.26970098]
[1748055341268,1.58436798,663.37,662.85,2.26970098]
[1748055341472,1.58436798,663.36,662.85,2.26970098]
[1748055341773,1.58436798,663.35,662.85,2.26970098]
[1748055342068,1.58436798,663.34,662.85,2.26970098]
[1748055342273,1.58436798,663.33,662.85,2.26970098]
[1748055342474,1.58436798,663.32,662.85,2.26970098]
[1748055342774,1.09520757,663.31,662.85,2.26970098]
[1748055342971,1.09520757,663.3,662.85,2.26970098]
[1748055343172,1.09520757,663.29,662.85,2.26970098]
[1748055343467,1.09520757,663.28,662.85,2.26970098]
[1748055343669,1.50130193,663.42,662.85,2.26970098]
[1748055343869,1.5843275,663.41,662.85,2.26970098]
[1748055344169,1.5843275,663.4,662.85,2.26970098]
[1748055344471,1.5843275,663.39,662.85,2.26970098]
[1748055344670,1.5843275,663.38,662.85,2.26970098]
[1748055344869,1.5843275,663.37,662.85,2.26970098]
[1748055345069,1.5843275,663.36,662.85,2.26970098]
[1748055345274,1.5843275,663.35,662.85,2.26970098]
[1748055345471,1.5843275,663.34,662.85,2.26970098]
[1748055345770,1.5843275,663.33,662.85,2.26970098]
[1748055345975,1.58432834,663.32,662.85,1.233]
[1748055346176,1.09517904,663.31,662.85,1.233]
[1748055346371,1.09517904,663.3,662.85,1.233]
[1748055346573,1.09517904,663.29,662.85,1.233]
[1748055346777,1.09517904,663.28,662.85,1.233]
[1748055346974,1.50130193,663.43,662.85,1.233]
[1748055347171,1.58429808,663.42,662.85,1.233]
[1748055347374,0.48914884,663.41,662.85,1.233]
[1748055347574,1.58429796,663.4,662.85,1.233]
[1748055347772,1.58429796,663.39,662.85,1.233]
[1748055347978,1.58429796,663.38,662.85,1.233]
[1748055348177,1.58429796,663.37,662.85,1.233]
[1748055348375,1.58429796,663.36,662.85,1.233]
[1748055348570,1.58429796,663.35,662.85,1.233]
[1748055348778,1.58429796,663.34,662.85,1.233]
[1748055348977,1.58429796,663.33,662.85,1.233]
[1748055349278,1.09514912,663.32,662.85,1.233]
[1748055349477,1.09514912,663.31,662.85,1.233]
[1748055349682,1.09514912,663.3,662.85,2.26970098]
[1748055349978,1.09514912,663.29,662.85,2.26970098]
[1748055350277,1.09514912,663.28,662.85,2.26970098]
[1748055350577,1.50130193,663.42,662.85,2.26970098]
[1748055350771,1.58425935,663.41,662.85,2.26970098]
[1748055350973,1.58425935,663.4,662.85,2.26970098]
[1748055351176,1.58424586,663.39,662.85,2.26970098]
[1748055351373,1.58424586,663.38,662.85,2.26970098]
[1748055351572,1.58424586,663.37,662.85,2.26970098]
[1748055351774,1.58424586,663.36,662.85,2.26970098]
[1748055351970,1.58424586,663.35,662.85,2.26970098]
[1748055352175,1.58424586,663.34,662.85,2.26970098]
[1748055352372,1.58424586,663.33,662.88,1.03670098]
[1748055352577,1.09511378,663.32,662.88,1.03670098]
[1748055352771,1.09511378,663.31,662.88,1.03670098]
[1748055352977,1.09511378,663.3,662.88,1.03670098]
[1748055353178,1.09511378,663.29,662.88,1.03670098]
[1748055353477,1.50130193,663.46,662.88,1.03670098]
[1748055353677,1.58424127,663.45,662.88,1.03670098]
[1748055353880,1.58424127,663.44,662.88,1.03670098]
[1748055354081,1.58424127,663.43,662.88,1.03670098]
[1748055354276,1.58424127,663.42,662.88,1.03670098]
[1748055354482,1.58424127,663.41,662.88,1.03670098]
[1748055354781,1.50130193,663.46,662.88,1.03670098]
[1748055354782,1.58424127,663.4,662.88,1.03670098]
[1748055354977,1.58424127,663.39,662.88,1.03670098]
[1748055355182,1.58424127,663.38,662.9,1.03670098]
[1748055355381,1.58424127,663.37,662.9,1.03670098]
[1748055355681,1.58424127,663.36,662.9,1.03670098]
[1748055355882,1.58424127,663.35,662.9,1.03670098]
[1748055356078,1.58424127,663.34,662.9,1.03670098]
[1748055356282,1.58424127,663.33,662.9,1.03670098]
[1748055356482,1.50130193,663.43,662.9,1.03670098]
[1748055356684,1.58416154,663.42,662.9,1.03670098]
[1748055356882,1.58416154,663.41,662.9,1.03670098]
[1748055357084,1.58416154,663.4,662.9,1.03670098]
[1748055357383,1.58416154,663.39,662.9,1.03670098]
[1748055357584,1.58416154,663.38,662.9,1.03670098]
[1748055357781,1.58416154,663.37,662.9,1.03670098]
[1748055357981,1.58416154,663.36,662.9,1.03670098]
[1748055358182,1.09503562,663.35,662.9,1.03670098]
[1748055358384,1.09503562,663.34,662.9,1.03670098]
[1748055358585,1.09503562,663.33,662.9,1.03670098]
[1748055358780,1.09503562,663.32,662.9,1.03670098]
[1748055358980,1.09503562,663.31,662.9,1.03670098]
[1748055359186,1.50130193,663.42,662.9,1.03670098]
[1748055359386,1.58418595,663.41,662.9,1.03670098]
[1748055359586,1.58418595,663.4,662.9,1.03670098]
[1748055359786,1.58418595,663.39,662.9,1.03670098]
[1748055359985,1.58418595,663.38,662.9,1.03670098]
[1748055360187,1.58418546,663.37,662.9,1.03670098]
[1748055360386,1.58418546,663.36,662.9,1.03670098]
[1748055360587,1.09505213,663.35,662.9,1.03670098]
[1748055360787,1.09505213,663.34,662.9,1.03670098]
[1748055360987,1.09505213,663.33,662.9,1.03670098]
[1748055361283,1.09505213,663.32,662.9,1.03670098]
[1748055361487,1.09505213,663.31,662.9,1.03670098]
[1748055361688,1.50130193,663.41,662.9,1.03670098]
[1748055361991,1.58383273,663.4,662.9,1.03670098]
[1748055362185,1.58383273,663.39,662.9,1.03670098]
[1748055362387,1.58383273,663.38,662.9,1.03670098]
[1748055362687,1.58383273,663.37,662.9,1.03670098]
[1748055362886,1.58383273,663.36,662.91,1.284]
[1748055363086,1.09469891,663.35,662.91,1.284]
[1748055363386,1.09469891,663.34,662.91,1.284]
[1748055363587,1.09469891,663.33,662.91,1.284]
[1748055363885,1.09469891,663.32,662.91,1.284]
[1748055364087,1.09469891,663.31,662.91,1.284]
[1748055364284,1.50130193,663.41,662.91,1.284]
[1748055364485,1.58402454,663.4,662.91,1.284]
[1748055364684,1.58402454,663.39,662.91,1.284]
[1748055364889,1.58402454,663.38,662.91,1.284]
[1748055365086,1.58409659,663.37,662.91,1.284]
[1748055365289,1.58409659,663.36,662.91,1.284]
[1748055365490,1.58409659,663.35,662.91,1.284]
[1748055365786,1.09487781,663.34,662.91,1.284]
[1748055365988,1.09487781,663.33,662.91,1.284]
[1748055366185,1.50130193,663.38,662.91,1.284]
[1748055366384,1.09478791,663.37,662.91,1.284]
[1748055366588,1.50130193,663.38,662.91,1.284]
[1748055366787,1.09477773,663.37,662.91,1.284]
[1748055366991,1.0947126,663.36,662.91,1.284]
[1748055367190,1.50130193,663.38,662.91,1.284]
[1748055367389,1.0947126,663.37,662.91,1.284]
[1748055367586,1.0947126,663.36,662.91,1.284]
[1748055367889,1.50130193,663.57,662.91,1.284]
[1748055368092,1.58381702,663.56,662.91,1.284]
[1748055368288,1.58381702,663.55,662.91,1.284]
[1748055368588,1.58370126,663.54,662.91,1.284]
[1748055368791,1.58370126,663.53,662.91,1.284]
[1748055369091,1.58370126,663.52,662.91,1.284]
[1748055369293,1.58370126,663.51,662.91,1.284]
[1748055369493,1.58370126,663.5,662.91,1.284]
[1748055369695,1.58370126,663.49,662.91,1.284]
[1748055369893,1.58370126,663.48,662.91,1.284]
[1748055370094,1.58370126,663.47,662.91,1.284]
[1748055370291,1.58370126,663.46,662.91,1.284]
[1748055370495,1.58363955,663.45,662.91,1.284]
[1748055370693,1.58363955,663.44,662.91,1.284]
[1748055370890,1.58363955,663.43,662.91,1.284]
[1748055371094,1.58363955,663.42,662.91,1.284]
[1748055371295,1.09457126,663.41,662.91,1.284]
[1748055371594,1.09457126,663.4,662.91,1.284]
[1748055371890,1.09457126,663.39,662.91,1.284]
[1748055372096,1.09457126,663.38,662.91,1.284]
[1748055372289,1.09443031,663.37,662.91,1.284]
[1748055372493,1.50130193,663.6,662.91,1.284]
[1748055372690,1.58359168,663.59,662.91,1.284]
[1748055372892,1.58359168,663.58,662.91,1.284]
[1748055373095,1.58359168,663.57,662.91,1.284]
[1748055373296,1.58359168,663.56,662.91,1.284]
[1748055373495,1.58359168,663.55,662.91,1.284]
[1748055373695,1.58359168,663.54,662.91,1.284]
[1748055373895,1.58359168,663.53,662.91,1.284]
[1748055374097,1.58359168,663.52,662.91,1.284]
[1748055374293,1.58359168,663.51,662.91,1.284]
[1748055374494,1.58359168,663.5,662.91,2.32070098]
[1748055374692,1.58359168,663.49,662.91,2.32070098]
[1748055374895,1.58359168,663.48,662.91,2.32070098]
[1748055375097,1.58359168,663.47,662.91,2.32070098]
[1748055375297,1.58359168,663.46,662.91,2.32070098]
[1748055375599,1.58359168,663.45,662.91,2.32070098]
[1748055375798,1.58359168,663.44,662.91,2.32070098]
[1748055376095,1.58345984,663.43,662.91,2.32070098]
[1748055376294,1.58345984,663.42,662.91,2.32070098]
[1748055376499,1.09432183,663.41,662.91,2.32070098]
[1748055376701,1.09432183,663.4,662.91,2.32070098]
[1748055376901,1.50130193,663.54,662.91,2.32070098]
[1748055377097,1.58275479,663.53,662.91,2.32070098]
[1748055377296,1.58275479,663.52,662.91,2.32070098]
[1748055377501,1.58275479,663.51,662.91,2.32070098]
[1748055377703,1.58266234,663.5,662.91,2.32070098]
[1748055377899,1.58266234,663.49,662.91,2.32070098]
[1748055378203,1.58266234,663.48,662.91,2.32070098]
[1748055378403,1.58266234,663.47,662.91,2.32070098]
[1748055378698,1.09360357,663.46,662.91,2.32070098]
[1748055378902,1.09360357,663.45,662.91,2.32070098]
[1748055379100,1.09360357,663.44,662.91,2.32070098]
[1748055379303,1.09360357,663.43,662.91,2.32070098]
[1748055379499,1.50130193,663.54,662.91,2.32070098]
[1748055379699,1.58223481,663.53,662.91,2.32070098]
[1748055379899,1.58223481,663.52,662.91,2.32070098]
[1748055380102,1.58223481,663.51,662.99,1.03670098]
[1748055380302,1.58223481,663.5,662.99,1.03670098]
[1748055380503,1.58223481,663.49,662.99,1.03670098]
[1748055380800,1.09331062,663.48,662.99,1.03670098]
[1748055381005,1.09331062,663.47,662.99,1.03670098]
[1748055381205,1.09331062,663.46,662.99,1.03670098]
[1748055381405,1.50130193,663.53,662.99,1.03670098]
[1748055381605,1.5820833,663.52,662.99,1.03670098]
[1748055381904,1.5820833,663.51,662.99,1.03670098]
[1748055382105,1.09317208,663.5,662.99,1.03670098]
[1748055382405,1.09317208,663.49,662.99,1.03670098]
[1748055382602,1.09317208,663.48,662.99,1.03670098]
[1748055382800,1.09317208,663.47,662.99,1.03670098]
[1748055382999,1.50130193,663.53,662.99,1.03670098]
[1748055383200,1.58203435,663.52,663.0,1.03670098]
[1748055383500,1.58203435,663.51,663.0,1.03670098]
[1748055383701,1.09288923,663.5,663.0,1.03670098]
[1748055383904,1.09288923,663.49,663.0,1.03670098]
[1748055384100,1.09288923,663.48,663.0,1.03670098]
[1748055384305,1.0927684,663.47,663.0,1.03670098]
[1748055384505,1.50130193,663.56,663.0,1.03670098]
[1748055384703,1.58170167,663.55,663.0,1.03670098]
[1748055384908,1.58170167,663.54,663.0,1.03670098]
[1748055385109,1.09265319,663.53,663.0,1.03670098]
[1748055385310,1.58169218,663.52,663.0,1.03670098]
[1748055385511,1.09265319,663.51,663.0,1.03670098]
[1748055385707,1.09265319,663.5,663.0,1.03670098]
[1748055385908,1.09265319,663.49,663.0,1.03670098]
[1748055386108,0.30135912,663.66,662.91,1.284]
[1748055386109,1.09265319,663.48,662.97,1.03670098]
[1748055386313,1.50130193,663.61,662.97,1.03670098]
[1748055386515,1.58140938,663.6,662.97,1.03670098]
[1748055386709,1.58140938,663.59,662.97,1.03670098]
[1748055386910,0.48895144,663.58,662.97,1.03670098]
[1748055387110,1.58139595,663.57,662.97,1.03670098]
[1748055387313,1.58139595,663.56,662.97,1.03670098]
[1748055387512,1.58139595,663.55,662.97,1.03670098]
[1748055387713,1.58139595,663.54,662.97,1.03670098]
[1748055387912,1.58139595,663.53,662.97,1.03670098]
[1748055388109,1.09244451,663.52,662.97,1.03670098]
[1748055388310,1.09244451,663.51,662.97,1.03670098]
[1748055388512,1.09244451,663.5,662.97,1.03670098]
[1748055388709,1.09244451,663.49,662.97,1.03670098]
[1748055388913,1.50130193,663.62,662.96,1.03670098]
[1748055389114,1.58094165,663.61,662.96,1.03670098]
[1748055389310,1.58094165,663.6,662.96,1.03670098]
[1748055389511,1.58094165,663.59,662.96,1.03670098]
[1748055389711,1.58094165,663.58,662.96,1.03670098]
[1748055390010,1.58094165,663.57,662.96,1.03670098]
[1748055390313,1.58094165,663.56,662.96,1.03670098]
[1748055390508,1.58094165,663.55,662.96,1.03670098]
[1748055390712,1.58094165,663.54,662.96,1.03670098]
[1748055390909,1.09227734,663.53,662.96,1.03670098]
[1748055391112,1.09227734,663.52,662.96,1.03670098]
[1748055391316,1.09227734,663.51,662.94,1.03670098]
[1748055391614,1.09227734,663.5,662.94,1.03670098]
[1748055391812,1.50130193,663.65,662.94,1.03670098]
[1748055392010,1.58067231,663.64,662.94,1.03670098]
[1748055392213,1.58067231,663.63,662.94,1.03670098]
[1748055392515,1.58066985,663.62,662.94,1.03670098]
[1748055392717,1.58066985,663.61,662.94,1.03670098]
[1748055392919,1.58066985,663.6,662.94,1.03670098]
[1748055393217,1.58066985,663.59,662.94,1.03670098]
[1748055393418,1.58066985,663.58,662.94,1.03670098]
[1748055393716,1.58066985,663.57,662.94,1.03670098]
[1748055394017,1.58066985,663.56,662.94,1.03670098]
[1748055394216,1.58066985,663.55,662.94,1.03670098]
[1748055394419,1.58066985,663.54,662.93,1.03670098]
[1748055394615,1.09209107,663.53,662.93,1.03670098]
[1748055394811,1.09209107,663.52,662.93,1.03670098]
[1748055395016,1.09209107,663.51,662.93,1.03670098]
[1748055395217,1.09209107,663.5,662.93,1.03670098]
[1748055395417,0.30135912,663.66,662.93,1.03670098]
[1748055395615,1.58045023,663.65,662.93,1.03670098]
[1748055395814,1.58045023,663.64,662.93,1.03670098]
[1748055396017,1.58045023,663.63,662.93,1.03670098]
[1748055396214,1.58045023,663.62,662.93,1.03670098]
[1748055396419,1.58045023,663.61,662.93,1.03670098]
[1748055396719,0.30135912,663.66,662.93,1.03670098]
[1748055396720,1.58045023,663.6,662.93,1.03670098]
[1748055397019,1.58045023,663.59,662.93,1.03670098]
[1748055397315,1.58045023,663.58,662.93,1.03670098]
[1748055397519,1.58045023,663.57,662.93,1.03670098]
[1748055397719,1.58045023,663.56,662.93,1.03670098]
[1748055397914,1.58041173,663.55,662.93,1.03670098]
[1748055398119,1.09189914,663.54,662.93,1.03670098]
[1748055398319,1.09189914,663.53,662.93,1.03670098]
[1748055398519,1.09189914,663.52,662.93,1.03670098]
[1748055398819,1.09189914,663.51,662.93,1.03670098]
[1748055399016,1.09189914,663.5,662.93,1.03670098]
[1748055399217,0.30135912,663.66,662.93,1.03670098]
[1748055399414,1.58037617,663.65,662.93,1.03670098]
[1748055399618,1.58037617,663.64,662.93,1.03670098]
[1748055399820,1.58037617,663.63,662.93,1.03670098]
[1748055400116,1.58037617,663.62,662.93,1.03670098]
[1748055400318,1.58037617,663.61,662.93,1.03670098]
[1748055400519,1.58037617,663.6,662.93,1.03670098]
[1748055400716,1.58037617,663.59,662.93,1.03670098]
[1748055400917,1.58037617,663.58,662.93,1.03670098]
[1748055401121,1.58037617,663.57,662.94,1.03670098]
[1748055401316,1.58037617,663.56,662.94,1.03670098]
[1748055401519,0.48848969,663.55,662.94,1.03670098]
[1748055401719,1.09188344,663.54,662.94,1.03670098]
[1748055402021,1.09188344,663.53,662.94,1.03670098]
[1748055402318,1.09188344,663.52,662.94,1.03670098]
[1748055402519,1.09188344,663.51,662.94,1.03670098]
[1748055402717,1.09188344,663.5,662.94,1.03670098]
[1748055402918,1.50130193,663.65,662.94,1.03670098]
[1748055403118,1.58039164,663.64,662.94,1.03670098]
[1748055403321,1.58039164,663.63,662.92,1.03670098]
[1748055403521,1.58039127,663.62,662.92,1.03670098]
[1748055403721,1.58039127,663.61,662.92,1.03670098]
[1748055403922,1.58039127,663.6,662.92,1.03670098]
[1748055404122,1.58039127,663.59,662.92,1.03670098]
[1748055404318,1.58039127,663.58,662.92,1.03670098]
[1748055404518,1.58039127,663.57,662.92,1.03670098]
[1748055404720,1.58039127,663.56,662.92,1.03670098]
[1748055405020,1.58039127,663.55,662.92,1.03670098]
[1748055405221,1.58045747,663.54,662.92,1.03670098]
[1748055405420,1.09194248,663.53,662.92,1.03670098]
[1748055405618,1.09194248,663.52,662.92,1.03670098]
[1748055405816,1.09194248,663.51,662.92,1.03670098]
[1748055406020,1.09194248,663.5,662.92,1.03670098]
[1748055406221,0.30135912,663.66,662.92,1.03670098]
[1748055406516,1.58050512,663.65,662.92,1.03670098]
[1748055406716,1.58050512,663.64,662.92,1.03670098]
[1748055406920,1.58050512,663.63,662.92,1.03670098]
[1748055407117,1.58052056,663.62,662.92,1.03670098]
[1748055407317,1.58052056,663.61,662.92,1.03670098]
[1748055407622,1.58052056,663.6,662.92,1.03670098]
[1748055407822,1.58052056,663.59,662.92,1.03670098]
[1748055408116,1.58052056,663.58,662.92,1.03670098]
[1748055408320,1.58052056,663.57,662.92,1.03670098]
[1748055408517,1.58052056,663.56,662.92,1.03670098]
[1748055408716,1.58052056,663.55,662.92,1.03670098]
[1748055408922,1.5806781,663.54,662.92,1.03670098]
[1748055409122,1.09213287,663.53,662.92,1.03670098]
[1748055409319,1.09213287,663.52,662.92,1.03670098]
[1748055409523,1.09213287,663.51,662.92,1.03670098]
[1748055409722,1.09213287,663.5,662.92,1.03670098]
[1748055410019,1.09213287,663.49,662.92,1.03670098]
[1748055410221,0.30135912,663.66,662.92,1.03670098]
[1748055410420,1.58080092,663.65,662.92,1.03670098]
[1748055410618,1.58080092,663.64,662.92,1.03670098]
[1748055410818,1.58076263,663.63,662.92,1.03670098]
[1748055411116,1.58076263,663.62,662.92,1.03670098]
[1748055411320,1.58076263,663.61,662.92,1.03670098]
[1748055411516,1.58076263,663.6,662.92,1.03670098]
[1748055411722,1.58076263,663.59,662.92,1.03670098]
[1748055411916,1.58076263,663.58,662.92,1.03670098]
[1748055412121,1.58076263,663.57,662.92,1.03670098]
[1748055412320,1.58076263,663.56,662.92,1.03670098]
[1748055412623,1.58086563,663.55,662.92,1.03670098]
[1748055412825,1.58086563,663.54,662.94,1.03670098]
[1748055413025,1.58086563,663.53,662.94,1.03670098]
[1748055413320,1.09222665,663.52,662.94,1.03670098]
[1748055413524,1.09222665,663.51,662.94,1.03670098]
[1748055413820,1.09222665,663.5,662.94,1.03670098]
[1748055414019,1.09222665,663.49,662.94,1.03670098]
[1748055414219,1.50130193,663.65,662.94,1.03670098]
[1748055414420,1.58102442,663.64,662.94,1.03670098]
[1748055414621,1.58102442,663.63,662.94,1.03670098]
[1748055414822,1.58102442,663.62,662.95,1.03670098]
[1748055415019,1.58102442,663.61,662.95,1.03670098]
[1748055415225,1.58102442,663.6,662.95,1.03670098]
[1748055415424,1.58102442,663.59,662.95,1.03670098]
[1748055415725,1.58102442,663.58,662.95,1.03670098]
[1748055415920,1.58102442,663.57,662.95,1.03670098]
[1748055416120,1.58102442,663.56,662.95,1.03670098]